[Event "2026 European Womens Championship"]
[Site "Batumi, GE"]
[Date "2026.05.26"]
[Round "2"]
[White "Szczotka, Klara"]
[Black "Rusitashvili, Tea"]
[Result "1-0"]
[Board "58"]
[TimeControl "5400+30"]
[WhiteFideId "21858845"]
[BlackFideId "13640771"]
[WhiteElo "2241"]
[BlackElo "1929"]
[WhiteTitle "WFM"]
[BlackTitle "WCM"]
[WhiteClock "0:01:24"]
[BlackClock "0:00:43"]
[Variant "Standard"]

1. d4 {[%clk 1:26:44]}  d5 {[%clk 1:30:56]} 2. c4 {[%clk 1:27:04]}  e6 {[%clk 1:31:20]} 3. Nc3 {[%clk 1:27:28]}  Be7 {[%clk 1:31:42]}
4. cxd5 {[%clk 1:27:15]}  exd5 {[%clk 1:32:10]} 5. Bf4 {[%clk 1:26:39]}  Nf6 {[%clk 1:31:51]} 6. e3 {[%clk 1:26:56]}  Bf5 {[%clk 1:31:18]}
7. Bd3 {[%clk 1:23:24]}  Bxd3 {[%clk 1:30:58]} 8. Qxd3 {[%clk 1:23:46]}  c6 {[%clk 1:30:49]} 9. Nf3 {[%clk 1:22:00]}  O-O {[%clk 1:30:55]}
10. h3 {[%clk 1:21:34]}  Nbd7 {[%clk 1:28:15]} 11. O-O {[%clk 1:18:34]}  Re8 {[%clk 1:24:36]} 12. Bh2 {[%clk 1:13:49]}  Nf8 {[%clk 1:17:31]}
13. Ne5 {[%clk 1:12:44]}  Bd6 {[%clk 1:17:25]} 14. a3 {[%clk 1:08:37]}  a5 {[%clk 1:13:48]} 15. Rab1 {[%clk 1:07:20]}  a4 {[%clk 1:11:02]}
16. Kh1 {[%clk 1:03:40]}  Ng6 {[%clk 1:07:03]} 17. f4 {[%clk 1:01:24]}  Ne4 {[%clk 1:00:28]} 18. Nxe4 {[%clk 0:58:11]}  dxe4 {[%clk 1:00:51]}
19. Qc4 {[%clk 0:58:15]}  Qe7 {[%clk 1:00:49]} 20. Ng4 {[%clk 0:52:38]}  h5 {[%clk 0:52:55]} 21. f5 {[%clk 0:35:39]}  Nh4 {[%clk 0:49:42]}
22. Bxd6 {[%clk 0:29:04]}  Qxd6 {[%clk 0:49:43]} 23. Ne5 {[%clk 0:29:12]}  Qf6 {[%clk 0:48:42]} 24. Rf4 {[%clk 0:16:17]}  Re7 {[%clk 0:42:07]}
25. Rbf1 {[%clk 0:14:57]}  Qg5 {[%clk 0:34:06]} 26. R1f2 {[%clk 0:11:23]}  Rc7 {[%clk 0:28:12]} 27. Qc2 {[%clk 0:07:58]}  c5 {[%clk 0:18:53]}
28. d5 {[%clk 0:05:44]}  Re7 {[%clk 0:15:19]} 29. Nc4 {[%clk 0:05:55]}  b5 {[%clk 0:12:25]} 30. d6 {[%clk 0:05:47]}  Ree8 {[%clk 0:11:12]}
31. d7 {[%clk 0:03:04]}  Red8 {[%clk 0:09:20]} 32. Nb6 {[%clk 0:00:58]}  Rab8 {[%clk 0:09:32]} 33. Qxc5 {[%clk 0:01:02]}  Qg3 {[%clk 0:09:32]}
34. f6 {[%clk 0:00:35]}  Rxb6 {[%clk 0:08:12]} 35. Qe7 {[%clk 0:00:35]}  Rbb8 {[%clk 0:03:40]} 36. fxg7 {[%clk 0:00:42]}  Qxg7 {[%clk 0:02:25]}
37. Rxh4 {[%clk 0:00:41]}  Qg6 {[%clk 0:02:09]} 38. Rhf4 {[%clk 0:00:37]}  Rf8 {[%clk 0:02:18]} 39. Rf6 {[%clk 0:00:42]}  Qg5 {[%clk 0:02:07]}
40. R2f4 {[%clk 0:00:43]}  Qd5 {[%clk 0:01:29]} 41. R6f5 {[%clk 0:00:41]}  Qc6 {[%clk 0:00:49]} 42. Rg5+ {[%clk 0:00:54]}  Kh7 {[%clk 0:00:39]}
43. Rxh5+ {[%clk 0:01:00]}  Kg7 {[%clk 0:00:43]} 44. Rg4+ {[%clk 0:01:24]} 1-0

[Event "2026 European Womens Championship"]
[Site "Batumi, GE"]
[Date "2026.05.26"]
[Round "2"]
[White "Calzetta Ruiz, Monica"]
[Black "Demirtas, Hafize"]
[Result "1-0"]
[Board "59"]
[TimeControl "5400+30"]
[WhiteFideId "2204185"]
[BlackFideId "6382070"]
[WhiteElo "2199"]
[BlackElo "1928"]
[WhiteTitle "WGM"]
[WhiteClock "0:05:08"]
[BlackClock "0:00:57"]
[Variant "Standard"]

1. e4 {[%clk 1:29:25]}  e5 {[%clk 1:29:51]} 2. Nf3 {[%clk 1:29:11]}  Nc6 {[%clk 1:29:57]} 3. Bb5 {[%clk 1:29:23]}  Nge7 {[%clk 1:30:11]}
4. Nc3 {[%clk 1:27:21]}  Ng6 {[%clk 1:28:32]} 5. h4 {[%clk 1:23:14]}  Nd4 {[%clk 1:28:52]} 6. Bc4 {[%clk 1:17:50]}  h5 {[%clk 1:29:11]}
7. d3 {[%clk 1:11:47]}  d5 {[%clk 1:17:51]} 8. Nxd5 {[%clk 1:09:30]}  Bg4 {[%clk 1:12:59]} 9. c3 {[%clk 0:58:31]}  Nxf3+ {[%clk 0:53:57]}
10. gxf3 {[%clk 0:58:37]}  Be6 {[%clk 0:51:46]} 11. Qb3 {[%clk 0:49:18]}  Bd6 {[%clk 0:38:10]} 12. Bg5 {[%clk 0:45:30]}  Qc8 {[%clk 0:37:08]}
13. O-O-O {[%clk 0:42:58]}  b5 {[%clk 0:35:03]} 14. Qxb5+ {[%clk 0:40:36]}  Bd7 {[%clk 0:31:33]} 15. Qa6 {[%clk 0:37:37]}  Qb8 {[%clk 0:28:56]}
16. Rhg1 {[%clk 0:35:55]}  Nf8 {[%clk 0:27:00]} 17. f4 {[%clk 0:30:20]}  c6 {[%clk 0:25:24]} 18. fxe5 {[%clk 0:25:08]}  Bxe5 {[%clk 0:24:22]}
19. Nb4 {[%clk 0:23:14]}  Qc7 {[%clk 0:22:07]} 20. d4 {[%clk 0:22:37]}  Bd6 {[%clk 0:17:54]} 21. Nd3 {[%clk 0:22:28]}  Bg4 {[%clk 0:14:36]}
22. f3 {[%clk 0:21:48]}  Bc8 {[%clk 0:14:16]} 23. Qa4 {[%clk 0:22:04]}  Ne6 {[%clk 0:14:24]} 24. e5 {[%clk 0:22:18]}  Bf8 {[%clk 0:13:00]}
25. d5 {[%clk 0:19:24]}  Nxg5 {[%clk 0:12:35]} 26. Rxg5 {[%clk 0:19:47]}  g6 {[%clk 0:11:40]} 27. f4 {[%clk 0:16:37]}  Bh6 {[%clk 0:11:40]}
28. Rgg1 {[%clk 0:16:28]}  Bg4 {[%clk 0:10:11]} 29. Rde1 {[%clk 0:15:24]}  O-O {[%clk 0:10:27]} 30. Qxc6 {[%clk 0:14:40]}  Qd8 {[%clk 0:07:52]}
31. e6 {[%clk 0:13:16]}  Qxh4 {[%clk 0:05:51]} 32. e7 {[%clk 0:10:55]}  Rfe8 {[%clk 0:05:31]} 33. d6 {[%clk 0:10:48]}  Qf6 {[%clk 0:04:20]}
34. Kb1 {[%clk 0:05:20]}  Rab8 {[%clk 0:04:27]} 35. Qd5 {[%clk 0:04:44]}  Bg7 {[%clk 0:02:07]} 36. Ne5 {[%clk 0:04:08]}  Be6 {[%clk 0:01:40]}
37. Qd4 {[%clk 0:04:32]}  Qf5+ {[%clk 0:01:07]} 38. Bd3 {[%clk 0:04:27]}  Bxe5 {[%clk 0:01:07]} 39. Rxe5 {[%clk 0:04:34]}  Qh3 {[%clk 0:00:47]}
40. f5 {[%clk 0:04:48]}  Bd7 {[%clk 0:00:42]} 41. fxg6 {[%clk 0:05:10]}  f6 {[%clk 0:00:57]} 42. Qd5+ {[%clk 0:05:08]} 1-0

[Event "2026 European Womens Championship"]
[Site "Batumi, GE"]
[Date "2026.05.26"]
[Round "2"]
[White "Koghuashvili, Tekla"]
[Black "Maisuradze, Nino"]
[Result "1-0"]
[Board "60"]
[TimeControl "5400+30"]
[WhiteFideId "13621564"]
[BlackFideId "13601717"]
[WhiteElo "1921"]
[BlackElo "2198"]
[BlackTitle "WGM"]
[WhiteClock "0:30:44"]
[BlackClock "0:01:23"]
[Variant "Standard"]

1. e4 {[%clk 1:30:59]}  c5 {[%clk 1:29:31]} 2. c3 {[%clk 1:31:24]}  Nf6 {[%clk 1:24:18]} 3. e5 {[%clk 1:31:47]}  Nd5 {[%clk 1:24:45]}
4. d4 {[%clk 1:32:11]}  cxd4 {[%clk 1:25:09]} 5. Qxd4 {[%clk 1:32:35]}  e6 {[%clk 1:24:37]} 6. Nf3 {[%clk 1:32:59]}  Nc6 {[%clk 1:24:58]}
7. Qe4 {[%clk 1:33:24]}  f5 {[%clk 1:25:06]} 8. Qe2 {[%clk 1:33:47]}  Qc7 {[%clk 1:07:41]} 9. g3 {[%clk 1:34:08]}  b5 {[%clk 0:59:44]}
10. Bg2 {[%clk 1:32:19]}  a5 {[%clk 0:57:43]} 11. O-O {[%clk 1:30:55]}  Ba6 {[%clk 0:58:03]} 12. Rd1 {[%clk 1:30:52]}  Bc5 {[%clk 0:46:50]}
13. Nh4 {[%clk 1:12:40]}  Nce7 {[%clk 0:38:45]} 14. Bg5 {[%clk 1:08:09]}  O-O {[%clk 0:32:59]} 15. Nd2 {[%clk 1:02:19]}  Rab8 {[%clk 0:29:50]}
16. Nb3 {[%clk 0:59:38]}  Bb6 {[%clk 0:27:41]} 17. Nd4 {[%clk 0:53:42]}  h6 {[%clk 0:03:52]} 18. Bxe7 {[%clk 0:49:17]}  Nxe7 {[%clk 0:04:20]}
19. a4 {[%clk 0:48:27]}  Qc4 {[%clk 0:03:42]} 20. Qh5 {[%clk 0:46:46]}  bxa4 {[%clk 0:02:54]} 21. Bf1 {[%clk 0:42:25]}  Qc8 {[%clk 0:03:23]}
22. Bxa6 {[%clk 0:42:26]}  Qxa6 {[%clk 0:03:51]} 23. Rxa4 {[%clk 0:42:14]}  Bc7 {[%clk 0:03:13]} 24. Ndf3 {[%clk 0:32:09]}  Rxb2 {[%clk 0:03:16]}
25. Rad4 {[%clk 0:31:29]}  Bb6 {[%clk 0:02:06]} 26. Rxd7 {[%clk 0:31:37]}  Bxf2+ {[%clk 0:01:09]} 27. Kh1 {[%clk 0:31:53]}  Qe2 {[%clk 0:01:07]}
28. Rd8 {[%clk 0:30:31]}  Rb8 {[%clk 0:00:48]} 29. R8d2 {[%clk 0:30:38]}  Qe3 {[%clk 0:00:44]} 30. Rf1 {[%clk 0:30:37]}  Bxg3 {[%clk 0:00:35]}
31. hxg3 {[%clk 0:31:01]}  Qxc3 {[%clk 0:00:39]} 32. Rd7 {[%clk 0:30:53]}  Qc5 {[%clk 0:00:42]} 33. Rfd1 {[%clk 0:30:24]}  a4 {[%clk 0:00:43]}
34. Ng6 {[%clk 0:30:18]}  Rfe8 {[%clk 0:00:55]} 35. Nxe7+ {[%clk 0:30:21]}  Rxe7 {[%clk 0:01:23]} 36. Rd8+ {[%clk 0:30:44]} 1-0

[Event "2026 European Womens Championship"]
[Site "Batumi, GE"]
[Date "2026.05.26"]
[Round "2"]
[White "Olde, Margareth"]
[Black "Giorgadze, Mariam Ere"]
[Result "1-0"]
[Board "61"]
[TimeControl "5400+30"]
[WhiteFideId "4503082"]
[BlackFideId "13636839"]
[WhiteElo "2194"]
[BlackElo "1909"]
[WhiteTitle "WIM"]
[WhiteClock "0:13:25"]
[BlackClock "0:03:18"]
[Variant "Standard"]

1. d4 {[%clk 1:30:57]}  Nf6 {[%clk 1:30:56]} 2. c4 {[%clk 1:31:19]}  g6 {[%clk 1:31:23]} 3. Nc3 {[%clk 1:31:41]}  Bg7 {[%clk 1:31:48]}
4. e4 {[%clk 1:31:26]}  d6 {[%clk 1:32:13]} 5. h3 {[%clk 1:32:23]}  O-O {[%clk 1:32:34]} 6. Be3 {[%clk 1:32:31]}  e5 {[%clk 1:32:54]}
7. d5 {[%clk 1:32:48]}  Nh5 {[%clk 1:33:04]} 8. Be2 {[%clk 1:32:42]}  Nf4 {[%clk 1:30:45]} 9. Bf3 {[%clk 1:33:01]}  g5 {[%clk 1:26:50]}
10. g3 {[%clk 1:25:20]}  Ng6 {[%clk 1:27:13]} 11. Bg4 {[%clk 1:24:17]}  h6 {[%clk 1:16:15]} 12. Bf5 {[%clk 1:13:31]}  Nd7 {[%clk 1:05:45]}
13. Nge2 {[%clk 1:04:17]}  Nf6 {[%clk 0:54:45]} 14. Qd2 {[%clk 1:00:08]}  Ne7 {[%clk 0:52:23]} 15. Bxc8 {[%clk 0:54:01]}  Qxc8 {[%clk 0:51:55]}
16. h4 {[%clk 0:49:13]}  Qg4 {[%clk 0:46:39]} 17. hxg5 {[%clk 0:39:09]}  Nxe4 {[%clk 0:27:15]} 18. Nxe4 {[%clk 0:39:28]}  Qxe4 {[%clk 0:27:41]}
19. Rh4 {[%clk 0:39:44]}  Qf3 {[%clk 0:26:28]} 20. gxh6 {[%clk 0:37:40]}  Bf6 {[%clk 0:26:24]} 21. Bg5 {[%clk 0:34:02]}  Kh7 {[%clk 0:19:54]}
22. Bxf6 {[%clk 0:25:10]}  Qxf6 {[%clk 0:20:23]} 23. Qc2+ {[%clk 0:23:39]}  Ng6 {[%clk 0:19:13]} 24. Nc3 {[%clk 0:19:43]}  Qg5 {[%clk 0:18:02]}
25. Ne4 {[%clk 0:18:35]}  Qe7 {[%clk 0:14:51]} 26. Rh5 {[%clk 0:18:20]}  c6 {[%clk 0:13:27]} 27. dxc6 {[%clk 0:18:04]}  bxc6 {[%clk 0:13:56]}
28. O-O-O {[%clk 0:17:49]}  Rad8 {[%clk 0:11:31]} 29. Kb1 {[%clk 0:13:16]}  d5 {[%clk 0:11:37]} 30. Ng5+ {[%clk 0:13:14]}  Kh8 {[%clk 0:12:05]}
31. cxd5 {[%clk 0:12:58]}  cxd5 {[%clk 0:12:33]} 32. Qf5 {[%clk 0:12:57]}  Rd6 {[%clk 0:07:37]} 33. f3 {[%clk 0:08:21]}  Rf6 {[%clk 0:06:04]}
34. Qd3 {[%clk 0:08:42]}  d4 {[%clk 0:06:12]} 35. f4 {[%clk 0:05:51]}  Rb8 {[%clk 0:01:10]} 36. Rh2 {[%clk 0:03:02]}  Rfb6 {[%clk 0:00:42]}
37. Nf3 {[%clk 0:01:05]}  e4 {[%clk 0:00:32]} 38. Qxd4+ {[%clk 0:01:28]}  f6 {[%clk 0:00:46]} 39. Ng1 {[%clk 0:00:50]}  Rb4 {[%clk 0:00:47]}
40. Qc3 {[%clk 0:00:40]}  Kh7 {[%clk 0:00:47]} 41. Rhd2 {[%clk 0:20:39]}  R4b7 {[%clk 0:27:59]} 42. Ne2 {[%clk 0:18:49]}  e3 {[%clk 0:19:50]}
43. Rc2 {[%clk 0:17:33]}  Qe4 {[%clk 0:13:17]} 44. Qd3 {[%clk 0:16:17]}  Qa4 {[%clk 0:11:28]} 45. Nc3 {[%clk 0:15:27]}  Qa3 {[%clk 0:09:25]}
46. Qe2 {[%clk 0:13:35]}  Ne7 {[%clk 0:05:25]} 47. Ka1 {[%clk 0:12:38]}  Rxb2 {[%clk 0:01:26]} 48. Rxb2 {[%clk 0:12:57]}  Qxc3 {[%clk 0:01:53]}
49. Qd3+ {[%clk 0:11:58]}  Qxd3 {[%clk 0:02:13]} 50. Rxd3 {[%clk 0:12:26]}  Rxb2 {[%clk 0:02:23]} 51. Kxb2 {[%clk 0:12:53]}  Kxh6 {[%clk 0:02:44]}
52. Rxe3 {[%clk 0:13:17]}  Nf5 {[%clk 0:02:55]} 53. Re6 {[%clk 0:13:08]}  Kg6 {[%clk 0:03:06]} 54. g4 {[%clk 0:13:31]}  Nd4 {[%clk 0:03:28]}
55. Ra6 {[%clk 0:13:43]}  Ne2 {[%clk 0:03:18]} 56. Ra4 {[%clk 0:13:25]} 1-0

[Event "2026 European Womens Championship"]
[Site "Batumi, GE"]
[Date "2026.05.26"]
[Round "2"]
[White "Damaso Tacoronte, Carolina"]
[Black "Chernyak, Viktoria"]
[Result "0-1"]
[Board "62"]
[TimeControl "5400+30"]
[WhiteFideId "2292858"]
[BlackFideId "24165956"]
[WhiteElo "1890"]
[BlackElo "2191"]
[BlackTitle "WGM"]
[WhiteClock "0:00:48"]
[BlackClock "0:16:59"]
[Variant "Standard"]

1. d4 {[%clk 1:30:32]}  Nf6 {[%clk 1:30:53]} 2. Nf3 {[%clk 1:30:48]}  e6 {[%clk 1:31:18]} 3. e3 {[%clk 1:30:37]}  c5 {[%clk 1:31:17]}
4. Bd3 {[%clk 1:29:55]}  Nc6 {[%clk 1:30:37]} 5. O-O {[%clk 1:23:08]}  d5 {[%clk 1:28:28]} 6. b3 {[%clk 1:23:18]}  b6 {[%clk 1:20:30]}
7. Bb2 {[%clk 1:21:12]}  Bb7 {[%clk 1:20:53]} 8. a3 {[%clk 1:20:53]}  Qc7 {[%clk 1:15:23]} 9. Nbd2 {[%clk 1:18:28]}  Bd6 {[%clk 1:09:13]}
10. dxc5 {[%clk 1:06:27]}  bxc5 {[%clk 1:02:14]} 11. c4 {[%clk 1:03:56]}  d4 {[%clk 0:57:17]} 12. exd4 {[%clk 1:01:13]}  Nxd4 {[%clk 0:56:53]}
13. h3 {[%clk 0:54:33]}  e5 {[%clk 0:55:54]} 14. Nxd4 {[%clk 0:39:25]}  exd4 {[%clk 0:41:44]} 15. Re1+ {[%clk 0:37:20]}  Kf8 {[%clk 0:42:03]}
16. Ne4 {[%clk 0:25:05]}  Bxe4 {[%clk 0:38:51]} 17. Bxe4 {[%clk 0:25:23]}  Rd8 {[%clk 0:36:13]} 18. Bd3 {[%clk 0:23:04]}  h5 {[%clk 0:35:16]}
19. Bc1 {[%clk 0:15:56]}  Qb6 {[%clk 0:28:42]} 20. Bg5 {[%clk 0:12:42]}  Bc7 {[%clk 0:28:53]} 21. Qf3 {[%clk 0:10:17]}  Qd6 {[%clk 0:16:23]}
22. g3 {[%clk 0:10:07]}  h4 {[%clk 0:08:00]} 23. Bxf6 {[%clk 0:09:11]}  Qxf6 {[%clk 0:06:48]} 24. Qxf6 {[%clk 0:07:29]}  gxf6 {[%clk 0:07:17]}
25. g4 {[%clk 0:07:21]}  a5 {[%clk 0:06:34]} 26. Rab1 {[%clk 0:05:35]}  Rb8 {[%clk 0:05:36]} 27. Kg2 {[%clk 0:05:29]}  Bd6 {[%clk 0:05:15]}
28. Be4 {[%clk 0:04:51]}  Kg7 {[%clk 0:05:26]} 29. Bc6 {[%clk 0:03:47]}  Rhd8 {[%clk 0:05:02]} 30. Bb5 {[%clk 0:03:38]}  Kg6 {[%clk 0:02:45]}
31. Bc6 {[%clk 0:02:55]}  Be5 {[%clk 0:02:32]} 32. Be4+ {[%clk 0:02:57]}  Kg5 {[%clk 0:02:38]} 33. Bd3 {[%clk 0:02:53]}  Rd7 {[%clk 0:02:18]}
34. Be4 {[%clk 0:01:11]}  Bf4 {[%clk 0:01:04]} 35. Red1 {[%clk 0:01:28]}  Re7 {[%clk 0:00:53]} 36. f3 {[%clk 0:01:22]}  Be3 {[%clk 0:00:52]}
37. a4 {[%clk 0:01:24]}  Rb6 {[%clk 0:00:57]} 38. Kf1 {[%clk 0:01:01]}  Re8 {[%clk 0:00:58]} 39. Kg2 {[%clk 0:01:10]}  Reb8 {[%clk 0:00:46]}
40. Bc2 {[%clk 0:01:24]}  Kf4 {[%clk 0:01:02]} 41. Rd3 {[%clk 0:00:58]}  Re6 {[%clk 0:28:31]} 42. Rdd1 {[%clk 0:29:06]}  Rd8 {[%clk 0:27:41]}
43. Bd3 {[%clk 0:28:10]}  Re5 {[%clk 0:27:34]} 44. Rb2 {[%clk 0:21:04]}  Rde8 {[%clk 0:25:08]} 45. Re2 {[%clk 0:16:19]}  Rb8 {[%clk 0:21:30]}
46. Rb2 {[%clk 0:15:56]}  Kg5 {[%clk 0:20:14]} 47. Rbb1 {[%clk 0:13:30]}  Bf4 {[%clk 0:19:20]} 48. Be4 {[%clk 0:10:27]}  Bg3 {[%clk 0:19:43]}
49. Rd2 {[%clk 0:08:43]}  Kf4 {[%clk 0:20:05]} 50. Rd3 {[%clk 0:07:32]}  f5 {[%clk 0:17:30]} 51. gxf5 {[%clk 0:07:01]}  Rg8 {[%clk 0:17:57]}
52. Kh1 {[%clk 0:04:47]}  Bf2 {[%clk 0:16:14]} 53. Rf1 {[%clk 0:03:52]}  Be3 {[%clk 0:16:34]} 54. Kh2 {[%clk 0:03:19]}  Rg3 {[%clk 0:15:13]}
55. Rdd1 {[%clk 0:01:46]}  Re8 {[%clk 0:15:35]} 56. Rde1 {[%clk 0:02:04]}  Reg8 {[%clk 0:16:02]} 57. Bd5 {[%clk 0:00:54]}  Rg2+ {[%clk 0:16:12]}
58. Kh1 {[%clk 0:01:03]}  Kg3 {[%clk 0:16:10]} 59. Rxe3 {[%clk 0:00:44]}  Rh2+ {[%clk 0:16:33]} 60. Kg1 {[%clk 0:00:48]}  Kxh3# {[%clk 0:16:59]} 0-1

[Event "2026 European Womens Championship"]
[Site "Batumi, GE"]
[Date "2026.05.26"]
[Round "2"]
[White "Peycheva, Gergana"]
[Black "Kalandadze, Mariam"]
[Result "1-0"]
[Board "63"]
[TimeControl "5400+30"]
[WhiteFideId "2916711"]
[BlackFideId "13621122"]
[WhiteElo "2186"]
[BlackElo "1892"]
[WhiteTitle "FM"]
[WhiteClock "0:13:42"]
[BlackClock "0:23:32"]
[Variant "Standard"]

1. d4 {[%clk 1:30:56]}  Nf6 {[%clk 1:30:56]} 2. c4 {[%clk 1:31:01]}  g6 {[%clk 1:31:22]} 3. Nc3 {[%clk 1:31:06]}  Bg7 {[%clk 1:31:45]}
4. e4 {[%clk 1:31:05]}  d6 {[%clk 1:32:09]} 5. h3 {[%clk 1:30:57]}  O-O {[%clk 1:32:02]} 6. Be3 {[%clk 1:30:41]}  e5 {[%clk 1:29:02]}
7. d5 {[%clk 1:29:44]}  a5 {[%clk 1:29:17]} 8. g4 {[%clk 1:25:52]}  Na6 {[%clk 1:28:53]} 9. f3 {[%clk 1:21:56]}  Nd7 {[%clk 1:24:26]}
10. h4 {[%clk 1:20:25]}  Bf6 {[%clk 1:23:25]} 11. g5 {[%clk 1:06:08]}  Be7 {[%clk 1:19:11]} 12. Qd2 {[%clk 1:01:12]}  f5 {[%clk 1:14:39]}
13. exf5 {[%clk 0:57:35]}  gxf5 {[%clk 1:14:55]} 14. f4 {[%clk 0:57:59]}  Ndc5 {[%clk 1:09:10]} 15. Nge2 {[%clk 0:52:30]}  e4 {[%clk 0:58:06]}
16. Nd4 {[%clk 0:43:54]}  Nb4 {[%clk 0:57:41]} 17. O-O-O {[%clk 0:43:27]}  Nbd3+ {[%clk 0:50:13]} 18. Kb1 {[%clk 0:41:15]}  a4 {[%clk 0:50:23]}
19. a3 {[%clk 0:38:31]}  Bd7 {[%clk 0:44:49]} 20. h5 {[%clk 0:36:54]}  c6 {[%clk 0:39:53]} 21. h6 {[%clk 0:34:23]}  Ra6 {[%clk 0:38:03]}
22. Bxd3 {[%clk 0:32:44]}  Nxd3 {[%clk 0:38:16]} 23. Rdg1 {[%clk 0:31:52]}  Qa5 {[%clk 0:31:35]} 24. g6 {[%clk 0:27:42]}  Rb6 {[%clk 0:29:43]}
25. gxh7+ {[%clk 0:25:26]}  Kf7 {[%clk 0:28:20]} 26. Ndb5 {[%clk 0:19:16]}  cxb5 {[%clk 0:25:24]} 27. Rg7+ {[%clk 0:15:38]}  Ke8 {[%clk 0:25:49]}
28. Rg8 {[%clk 0:14:07]}  Bf6 {[%clk 0:23:32]} 29. Nxe4 {[%clk 0:13:42]} 1-0

[Event "2026 European Womens Championship"]
[Site "Batumi, GE"]
[Date "2026.05.26"]
[Round "2"]
[White "Odisharia, Teona"]
[Black "Recica, Jona"]
[Result "1-0"]
[Board "64"]
[TimeControl "5400+30"]
[WhiteFideId "13602322"]
[BlackFideId "22105239"]
[WhiteElo "2167"]
[BlackElo "1842"]
[WhiteTitle "WFM"]
[WhiteClock "0:45:15"]
[BlackClock "0:10:20"]
[Variant "Standard"]

1. e4 {[%clk 1:30:57]}  e5 {[%clk 1:29:53]} 2. Nf3 {[%clk 1:31:19]}  Nc6 {[%clk 1:30:17]} 3. d4 {[%clk 1:31:44]}  exd4 {[%clk 1:30:25]}
4. Nxd4 {[%clk 1:32:07]}  Qf6 {[%clk 1:30:43]} 5. Nb5 {[%clk 1:32:04]}  Bc5 {[%clk 1:30:38]} 6. Qe2 {[%clk 1:32:25]}  Qd8 {[%clk 1:23:05]}
7. Bf4 {[%clk 1:15:37]}  Bb6 {[%clk 1:21:26]} 8. N1c3 {[%clk 1:15:40]}  a6 {[%clk 1:19:23]} 9. Na3 {[%clk 1:16:00]}  Nge7 {[%clk 1:11:55]}
10. O-O-O {[%clk 1:15:46]}  O-O {[%clk 1:09:48]} 11. Nc4 {[%clk 1:00:18]}  Ba7 {[%clk 1:01:14]} 12. Ne3 {[%clk 0:50:20]}  d6 {[%clk 0:57:41]}
13. h4 {[%clk 0:47:07]}  Nd4 {[%clk 0:54:16]} 14. Qd2 {[%clk 0:46:28]}  b5 {[%clk 0:51:49]} 15. Ncd5 {[%clk 0:42:06]}  Be6 {[%clk 0:49:36]}
16. c3 {[%clk 0:36:42]}  Bxd5 {[%clk 0:46:55]} 17. exd5 {[%clk 0:35:19]}  Ndf5 {[%clk 0:46:50]} 18. h5 {[%clk 0:33:42]}  Nxe3 {[%clk 0:42:45]}
19. fxe3 {[%clk 0:33:04]}  Re8 {[%clk 0:42:17]} 20. Rh3 {[%clk 0:28:11]}  Qd7 {[%clk 0:40:22]} 21. e4 {[%clk 0:21:17]}  a5 {[%clk 0:38:02]}
22. Kb1 {[%clk 0:20:42]}  Reb8 {[%clk 0:36:24]} 23. Bd3 {[%clk 0:20:35]}  b4 {[%clk 0:36:14]} 24. c4 {[%clk 0:20:29]}  b3 {[%clk 0:35:53]}
25. a3 {[%clk 0:20:28]}  Bc5 {[%clk 0:36:02]} 26. h6 {[%clk 0:20:37]}  Ng6 {[%clk 0:31:28]} 27. Qc3 {[%clk 0:16:29]}  f6 {[%clk 0:30:24]}
28. Rf1 {[%clk 0:16:25]}  Ne5 {[%clk 0:28:28]} 29. hxg7 {[%clk 0:16:17]}  Kxg7 {[%clk 0:25:59]} 30. Bh6+ {[%clk 0:14:43]}  Kh8 {[%clk 0:23:12]}
31. Rxf6 {[%clk 0:14:47]}  Rg8 {[%clk 0:23:17]} 32. Bf1 {[%clk 0:13:43]}  a4 {[%clk 0:22:52]} 33. Rf5 {[%clk 0:11:56]}  Rg6 {[%clk 0:20:55]}
34. Bf4 {[%clk 0:11:57]}  Re8 {[%clk 0:19:56]} 35. Bxe5+ {[%clk 0:11:29]}  dxe5 {[%clk 0:20:14]} 36. Rxe5 {[%clk 0:11:53]}  Rxe5 {[%clk 0:20:38]}
37. Qxe5+ {[%clk 0:12:17]}  Kg8 {[%clk 0:20:56]} 38. Rf3 {[%clk 0:12:34]}  Bd6 {[%clk 0:20:16]} 39. Qc3 {[%clk 0:09:19]}  Qe7 {[%clk 0:19:53]}
40. e5 {[%clk 0:00:48]}  Qxe5 {[%clk 0:18:02]} 41. Qxe5 {[%clk 0:19:33]}  Bxe5 {[%clk 0:48:22]} 42. c5 {[%clk 0:16:27]}  Rg4 {[%clk 0:46:18]}
43. Rf5 {[%clk 0:13:04]}  Rd4 {[%clk 0:46:12]} 44. Be2 {[%clk 0:10:01]}  Rxd5 {[%clk 0:45:15]} 45. Bc4 {[%clk 0:10:20]} 1-0

[Event "2026 European Womens Championship"]
[Site "Batumi, GE"]
[Date "2026.05.26"]
[Round "2"]
[White "Abdinova, Narmin"]
[Black "Kalyoncu, Beren"]
[Result "1-0"]
[Board "65"]
[TimeControl "5400+30"]
[WhiteFideId "13425340"]
[BlackFideId "51608383"]
[WhiteElo "2165"]
[BlackElo "1840"]
[WhiteTitle "WIM"]
[BlackTitle "WCM"]
[WhiteClock "0:04:51"]
[BlackClock "0:00:47"]
[Variant "Standard"]

1. d4 {[%clk 1:29:31]}  d5 {[%clk 1:30:43]} 2. c4 {[%clk 1:29:50]}  c6 {[%clk 1:30:37]} 3. Nf3 {[%clk 1:29:42]}  Nf6 {[%clk 1:30:54]}
4. Qc2 {[%clk 1:29:44]}  g6 {[%clk 1:29:21]} 5. cxd5 {[%clk 1:29:55]}  cxd5 {[%clk 1:27:14]} 6. Nc3 {[%clk 1:30:12]}  Nc6 {[%clk 1:25:06]}
7. Bf4 {[%clk 1:30:31]}  a6 {[%clk 1:19:39]} 8. e3 {[%clk 1:28:14]}  Bg7 {[%clk 1:18:57]} 9. h3 {[%clk 1:27:05]}  O-O {[%clk 1:16:55]}
10. Be2 {[%clk 1:26:17]}  Bf5 {[%clk 1:10:21]} 11. Qb3 {[%clk 1:17:27]}  b5 {[%clk 1:06:40]} 12. Ne5 {[%clk 1:13:36]}  Rc8 {[%clk 0:50:49]}
13. a4 {[%clk 1:10:01]}  b4 {[%clk 0:44:29]} 14. Nxc6 {[%clk 1:08:56]}  Rxc6 {[%clk 0:44:50]} 15. Qxb4 {[%clk 1:09:09]}  Ne4 {[%clk 0:36:18]}
16. O-O {[%clk 1:00:17]}  Qd7 {[%clk 0:27:47]} 17. Nxe4 {[%clk 0:49:24]}  Bxe4 {[%clk 0:27:37]} 18. Rfc1 {[%clk 0:47:34]}  Rfc8 {[%clk 0:26:38]}
19. Rxc6 {[%clk 0:47:56]}  Rxc6 {[%clk 0:25:10]} 20. Kh2 {[%clk 0:38:18]}  Bf8 {[%clk 0:21:55]} 21. Qe1 {[%clk 0:36:28]}  Qc8 {[%clk 0:20:26]}
22. b4 {[%clk 0:36:49]}  Rc2 {[%clk 0:16:10]} 23. b5 {[%clk 0:32:11]}  a5 {[%clk 0:14:27]} 24. Kg1 {[%clk 0:15:31]}  e5 {[%clk 0:05:12]}
25. Bxe5 {[%clk 0:14:49]}  Bb4 {[%clk 0:05:29]} 26. Qf1 {[%clk 0:14:50]}  f6 {[%clk 0:02:22]} 27. Bg3 {[%clk 0:13:43]}  Qc3 {[%clk 0:01:40]}
28. b6 {[%clk 0:13:20]}  Qc6 {[%clk 0:01:22]} 29. Bc7 {[%clk 0:13:44]}  Bd2 {[%clk 0:00:47]} 30. Bf3 {[%clk 0:06:42]}  Bxf3 {[%clk 0:00:42]}
31. gxf3 {[%clk 0:07:07]}  Rc4 {[%clk 0:00:48]} 32. Rb1 {[%clk 0:06:27]}  Bb4 {[%clk 0:01:04]} 33. e4 {[%clk 0:06:30]}  dxe4 {[%clk 0:01:05]}
34. d5 {[%clk 0:04:32]}  Qxd5 {[%clk 0:00:47]} 35. b7 {[%clk 0:04:51]} 1-0